bitfinex-derivatives/quotes_ETHF0:USTF0_20260131
["timestamp","ask_amount","ask_price","bid_price","bid_amount"]
[1769884681743,4.11922965,2365.8,2362.0,0.00763848]
[1769884681744,3.90753965,2365.4,2362.0,0.00763848]
[1769884681941,4.11928965,2365.1,2361.5,2.70644517]
[1769884682140,6.96287152,2365.7,2358.0,0.21238]
[1769884682141,3.90753965,2364.0,2358.0,0.21238]
[1769884682452,0.07363708,2364.9,2358.0,0.21238]
[1769884682453,3.90753965,2363.6,2360.6,2.70644517]
[1769884682643,3.90753965,2363.6,2360.8,3.86357068]
[1769884682847,3.90753965,2363.4,2360.9,3.799]
[1769884683245,4.63051915,2363.3,2361.1,2.70644517]
[1769884683443,0.00527432,2363.6,2361.1,2.70644517]
[1769884683649,8.43225609,2363.4,2361.2,40.36169735]
[1769884683948,3.98117673,2364.9,2361.2,43.06814252]
[1769884684153,3.90753965,2366.4,2362.2,0.21201]
[1769884684457,3.90753965,2366.4,2361.4,0.21208]
[1769884684458,4.69325756,2366.3,2363.8,2.70644517]
[1769884684646,3.90753965,2368.0,2364.5,2.70644517]
[1769884684851,3.90753965,2368.0,2364.7,3.86357068]
[1769884685049,0.07353493,2368.4,2366.1,3.86357068]
[1769884685347,4.01335,2369.6,2367.4,3.86357068]
[1769884685745,4.01335,2369.6,2368.3,32.36310073]
[1769884685948,0.21135,2369.6,2368.6,32.36310073]
[1769884686147,1.34575078,2369.9,2369.1,32.35997834]
[1769884686345,0.21122,2371.1,2368.7,3.86357068]
[1769884686748,0.21122,2371.1,2368.6,0.00358294]
[1769884687144,3.75106581,2369.6,2366.3,3.90321533]
[1769884687342,3.75106581,2369.1,2367.0,3.90321533]
[1769884687549,3.802,2369.5,2368.1,17.84575834]
[1769884687850,3.287,2370.5,2368.2,14.09469253]
[1769884688050,3.287,2370.5,2368.2,3.90321533]
[1769884688245,0.21135,2369.6,2366.9,3.90321533]
[1769884688852,0.21136,2369.5,2366.9,3.90321533]
[1769884689248,0.07347616,2370.0,2368.0,3.90321533]
[1769884689450,3.29080091,2370.5,2368.1,3.90321533]
[1769884689647,0.00380091,2370.5,2368.7,3.90321533]
[1769884689850,3.75106581,2370.4,2368.7,0.00311768]
[1769884690153,3.75106581,2370.4,2368.8,3.90321533]
[1769884690348,0.00380091,2370.5,2368.8,3.90321533]
[1769884690849,0.00380091,2370.5,2369.3,3.90321533]
[1769884691043,3.75486672,2370.5,2368.7,0.00311768]
[1769884691249,0.04857119,2370.0,2367.4,4.08792914]
[1769884691453,0.33330463,2370.4,2368.2,4.08066677]
[1769884691747,0.00380091,2370.5,2369.3,4.08066677]
[1769884691948,0.00380091,2370.5,2367.7,2.70644517]
[1769884692151,0.00380091,2370.5,2370.4,4.1566322]
[1769884692353,2.70644517,2372.2,2370.5,0.30108973]
[1769884692557,4.01309,2372.6,2369.1,3.802]
[1769884692855,4.08648364,2372.6,2369.2,3.802]
[1769884693149,0.28448364,2372.6,2369.8,0.30108973]
[1769884693454,0.00409451,2372.6,2370.8,0.30108973]
[1769884693649,0.00409451,2372.6,2371.3,0.30108973]
[1769884694043,0.00409451,2372.6,2371.5,4.10495237]
[1769884694246,2.70644517,2373.9,2371.5,0.00483259]
[1769884694454,0.21104,2373.1,2371.5,0.00483259]
[1769884694950,3.801,2373.0,2371.5,0.00483259]
[1769884695151,0.21104,2373.1,2371.5,0.00483259]
[1769884695356,0.00525119,2373.1,2371.5,4.10978496]
[1769884695546,0.12043639,2372.3,2368.9,3.801]
[1769884695849,0.12043639,2372.3,2366.8,30.4088455]
[1769884695850,0.12043639,2372.0,2369.2,4.04473417]
[1769884696052,0.21113,2372.1,2365.7,14.52522593]
[1769884696053,0.12043639,2371.2,2368.9,4.04473417]
[1769884696244,0.12043639,2370.8,2367.4,4.04473417]
[1769884696446,0.12043639,2370.8,2364.8,35.12914069]
[1769884696447,0.12043639,2370.2,2367.0,4.04473417]
[1769884696646,0.12043639,2370.1,2367.0,4.04830939]
[1769884696850,0.12043639,2370.0,2368.1,4.04473417]
[1769884697251,0.33181639,2369.3,2367.0,4.05802794]
[1769884697448,0.3124093,2368.9,2367.0,4.05802794]
[1769884697656,2.91777517,2369.8,2365.2,4.05624033]
[1769884697657,0.1009993,2368.2,2365.2,4.05624033]
[1769884697855,0.09742408,2367.1,2365.2,4.05624033]
[1769884698057,3.89742408,2367.1,2365.7,0.30108973]
[1769884698250,3.8,2367.1,2365.8,0.30108973]
[1769884698460,3.8,2367.1,2363.2,2.76143574]
[1769884698461,0.21162,2366.6,2363.6,4.05624033]
[1769884698757,0.09742408,2366.3,2363.6,4.0597483]
[1769884699054,0.09742408,2365.5,2363.6,4.0597483]
[1769884699352,0.03713799,2364.7,2361.5,4.08638337]
[1769884699552,3.801,2364.6,2361.5,4.08638337]
[1769884699753,0.03713799,2364.5,2361.9,4.08638337]
[1769884699953,0.03713799,2364.4,2361.9,4.08638337]
[1769884700156,0.03713799,2365.0,2361.9,4.08638337]
[1769884700356,0.9676564,2364.4,2362.0,4.08638337]
[1769884700552,1.57527142,2364.5,2362.0,4.08638337]
[1769884700755,1.06613742,2364.9,2362.0,4.08638337]
[1769884701056,0.00427345,2365.0,2362.4,4.08638337]
[1769884701359,2.1490454,2364.9,2362.4,4.08638337]
[1769884701562,0.00427345,2365.0,2362.4,4.08638337]
[1769884701756,1.75522964,2364.9,2362.4,4.08638337]
[1769884702457,1.75522964,2364.9,2361.9,0.00501097]
[1769884702458,0.04537386,2364.0,2361.9,4.08727641]
[1769884702665,0.04537386,2363.8,2361.9,4.08727641]
[1769884702855,0.04537386,2363.8,2361.9,0.00501097]
[1769884703158,0.19701623,2363.7,2361.9,4.08727641]
[1769884703361,0.07374735,2364.2,2361.9,4.08727641]
[1769884703661,0.07374735,2363.6,2361.9,0.00501097]
[1769884703858,3.804,2363.5,2361.9,4.07308966]
[1769884704059,0.09851854,2363.5,2361.9,4.07308966]
[1769884704262,3.804,2364.6,2361.9,4.07308966]
[1769884704263,0.07374735,2363.4,2361.9,0.00501097]
[1769884704453,3.804,2363.4,2361.9,0.00501097]
[1769884704654,3.804,2363.4,2359.6,4.06807869]
[1769884704655,0.28570735,2362.8,2359.6,4.06807869]
[1769884704963,3.804,2364.5,2360.7,4.06807869]
[1769884705263,4.70796189,2364.7,2361.4,4.01881525]
[1769884705560,0.39438289,2364.4,2361.4,4.01881525]
[1769884705765,0.39438289,2364.4,2361.4,4.02287467]
[1769884705766,4.19938289,2364.4,2361.4,4.02287467]
[1769884705964,0.21601534,2364.7,2361.4,4.02287467]
[1769884705965,0.00422534,2364.7,2361.4,4.02287467]
[1769884706161,0.39438289,2364.3,2361.4,4.02287467]
[1769884706361,2.14846155,2364.6,2361.5,4.10495237]
[1769884706561,2.14846155,2364.6,2361.6,2.70644517]
[1769884706862,2.14846155,2364.6,2361.5,4.10495237]
[1769884707363,0.03422001,2363.8,2361.5,4.10495237]
[1769884707559,0.03422001,2363.8,2359.6,26.647]
[1769884707560,0.03422001,2362.4,2359.0,4.08784236]
[1769884707864,5.28398676,2363.7,2359.6,4.08784236]
[1769884708062,2.46452795,2363.8,2360.3,3.90321533]
[1769884708262,1.65505478,2362.9,2360.3,3.90321533]
[1769884708561,3.806,2362.8,2360.3,0.00329936]
[1769884708767,0.21198,2362.6,2360.3,0.00329936]
[1769884708963,3.90300355,2362.8,2360.3,3.90651469]
[1769884709159,1.97163076,2362.5,2360.3,3.90651469]
[1769884709363,2.44218871,2362.7,2360.3,3.90651469]
[1769884709563,3.806,2362.8,2360.3,3.90651469]
[1769884709758,1.65293053,2362.5,2360.3,0.00329936]
[1769884709972,1.44094053,2362.2,2360.3,0.00329936]
[1769884710264,1.43764117,2361.5,2358.9,0.0008]
[1769884710461,1.43764117,2361.2,2358.9,0.0008]
[1769884710764,1.43764117,2361.0,2358.3,3.90321533]
[1769884711069,1.43764117,2360.8,2357.8,3.90321533]
[1769884711268,1.43764117,2360.8,2357.8,0.00358244]
[1769884711269,1.43764117,2360.2,2357.8,0.00358244]
[1769884711563,1.03217977,2357.7,2354.2,3.90321533]
[1769884711764,1.03217977,2357.5,2354.2,3.90321533]
[1769884711965,1.03217977,2357.3,2354.1,0.07387069]
[1769884712165,1.03217977,2357.1,2354.4,3.90321533]
[1769884712365,0.21254,2356.4,2353.4,3.90321533]
[1769884712565,0.21267,2355.0,2349.6,14.52522593]
[1769884712763,0.21267,2355.0,2349.0,22.95968463]
[1769884712764,3.75106581,2352.6,2348.3,10.27482593]
[1769884712963,3.75106581,2352.6,2346.5,12.51930128]
[1769884712964,4.17695581,2351.9,2346.5,12.51930128]
[1769884713261,4.49652339,2352.5,2349.2,0.21318]
[1769884713460,3.75106581,2355.1,2349.8,0.21313]
[1769884713659,4.61694074,2352.4,2351.0,2.70644517]
[1769884713859,0.35763036,2354.4,2349.4,0.21314]
[1769884714062,0.35763036,2354.4,2349.2,0.21318]
[1769884714063,3.75106581,2354.4,2349.5,35.639]
[1769884714264,3.75106581,2354.5,2352.2,3.90425428]
[1769884714467,4.45828563,2354.3,2351.7,3.90321533]
[1769884714660,0.00365545,2354.5,2352.3,3.90321533]
[1769884715073,3.75472126,2354.5,2352.3,3.90321533]
[1769884715364,3.75106581,2354.3,2352.2,0.00319459]
[1769884715570,0.00365545,2354.5,2353.3,3.90321533]
[1769884715770,3.75106581,2356.0,2353.8,3.90425428]
[1769884716068,3.75106581,2357.9,2355.6,7.80746961]
[1769884716369,3.75106581,2359.1,2356.3,3.90321533]
[1769884716566,11.23531172,2359.3,2354.9,3.90321533]
[1769884716567,3.75106581,2358.4,2354.9,3.90321533]
[1769884716759,3.75106581,2358.2,2354.9,3.90321533]
[1769884716967,3.75508088,2358.2,2354.9,3.90859409]
[1769884717163,3.98584639,2358.2,2355.5,3.77220514]
[1769884717367,3.98584639,2358.2,2354.9,3.7775839]
[1769884717368,3.98183132,2358.1,2354.9,3.7775839]
[1769884717670,3.98183132,2358.1,2355.1,3.77220514]
[1769884717866,3.98183132,2359.4,2356.6,3.77220514]
[1769884718172,3.98183132,2359.4,2354.8,3.815]
[1769884718173,3.98183132,2360.0,2356.8,3.77220514]
[1769884718469,4.40646132,2358.6,2354.8,3.77220514]
[1769884718662,0.21241,2357.5,2354.2,3.77220514]
[1769884718860,0.00299859,2357.5,2354.2,3.77581442]
[1769884719066,0.00299859,2357.5,2356.0,3.77220514]
[1769884719370,0.00299859,2357.5,2356.2,3.77220514]
[1769884719566,3.98183132,2358.7,2356.5,3.77220514]
[1769884719771,3.98183132,2358.5,2356.0,0.00455634]
[1769884720868,3.98183132,2358.0,2356.0,0.00455634]
[1769884721068,3.98183132,2357.1,2353.4,3.77220514]
[1769884721371,0.19836552,2357.9,2353.9,3.77220514]
[1769884721570,0.19836552,2357.9,2353.4,2.487]
[1769884721571,3.98183132,2357.8,2354.3,3.77220514]
[1769884721771,3.98183132,2357.7,2354.9,3.77220514]
[1769884722173,3.98183132,2357.4,2354.9,0.00396681]
[1769884722374,0.21244,2357.3,2354.9,0.00396681]
[1769884722577,3.96364568,2356.1,2352.3,5.263]
[1769884722770,4.182,2357.6,2350.7,3.95499994]
[1769884722771,2.70644517,2353.9,2350.7,3.95499994]
[1769884722972,3.96364568,2355.1,2351.0,3.95499994]
[1769884723172,2.18573201,2353.8,2352.0,3.95499994]
[1769884723477,3.96364568,2354.5,2352.0,3.95499994]
[1769884723679,0.00479246,2353.8,2352.0,3.96020076]
[1769884723878,0.00479246,2353.8,2352.6,3.95499994]
[1769884724075,3.96364568,2357.2,2353.6,3.95499994]
[1769884724281,4.17599568,2358.3,2354.4,3.95499994]
[1769884724577,3.96364568,2357.9,2354.6,3.95499994]
[1769884724877,3.96364568,2357.2,2352.2,3.95499994]
[1769884725070,3.96364568,2357.2,2352.9,3.95499994]
[1769884725071,3.96364568,2357.0,2352.9,3.95499994]
[1769884725268,3.819,2357.1,2354.6,3.95499994]
[1769884725472,3.819,2357.1,2353.5,0.21277]
[1769884725473,0.00434015,2357.2,2355.0,3.95499994]
[1769884725669,3.96364568,2357.0,2355.0,0.00442917]
[1769884726078,3.819,2357.1,2355.3,3.98270723]
[1769884726271,0.00434015,2357.2,2355.9,3.95499994]
[1769884726775,0.00434015,2357.2,2356.3,0.02770729]
[1769884726972,0.00434015,2357.2,2355.0,0.00442917]
[1769884726973,0.00434015,2357.2,2355.3,3.95499994]
[1769884727172,3.96364568,2355.7,2355.0,9.17e-06]
[1769884727379,3.96364568,2355.2,2352.8,3.95499994]
[1769884727574,0.21259,2355.6,2352.8,3.95499994]
[1769884727877,4.06175122,2355.1,2352.8,3.95499994]
[1769884728275,3.96364568,2354.5,2352.8,0.00513357]
[1769884728471,3.96364568,2354.3,2352.8,0.00513357]
[1769884728676,3.96364568,2353.9,2350.6,3.95499994]
[1769884728875,3.96364568,2353.3,2350.6,3.95499994]
[1769884729076,3.96364568,2352.8,2350.6,3.95499994]
[1769884729275,3.82,2353.2,2349.2,3.95499994]
[1769884729276,3.96364568,2352.4,2349.2,3.95499994]
[1769884729678,3.96364568,2352.4,2347.4,4.466]
[1769884729679,3.96364568,2351.7,2347.7,3.95499994]
[1769884729876,4.4718945,2352.3,2349.1,3.95813309]
[1769884729877,3.96364568,2352.2,2349.1,3.95813309]
[1769884730083,0.00536488,2352.4,2349.1,3.95813309]
[1769884730084,4.47658346,2352.4,2349.3,3.95499994]
[1769884730271,3.96364568,2354.6,2350.8,3.95499994]
[1769884730471,3.96364568,2355.6,2351.9,3.95499994]
[1769884731381,6.52844517,2356.2,2351.9,3.95499994]
[1769884731382,4.17625568,2355.4,2351.9,3.95499994]
[1769884731578,3.96364568,2355.1,2351.9,3.95499994]
[1769884731874,3.96364568,2355.1,2351.9,3.95901382]
[1769884731875,3.96748466,2355.1,2351.9,3.95901382]
[1769884732278,0.00383898,2355.1,2352.4,3.95499994]
[1769884732480,3.96364568,2357.5,2353.8,3.95499994]
[1769884732677,3.96364568,2357.5,2354.5,3.95499994]
[1769884732876,3.96364568,2358.7,2355.2,3.95499994]
[1769884733079,3.96364568,2359.4,2355.9,3.95499994]
[1769884733285,3.96364568,2359.4,2356.6,3.95499994]
[1769884733483,0.00433765,2359.4,2356.8,3.95499994]
[1769884733784,3.96364568,2359.1,2356.6,0.00384933]
[1769884734080,3.96364568,2357.9,2356.6,0.00384933]
[1769884734279,3.96364568,2357.9,2355.8,3.822]
[1769884734479,3.96364568,2357.9,2355.9,3.95499994]
[1769884734682,3.96364568,2357.7,2354.5,3.95499994]
[1769884734874,3.96364568,2357.7,2354.7,3.95499994]
[1769884735179,3.967145,2357.7,2354.9,3.95499994]
[1769884735579,0.00349932,2357.7,2354.9,3.95499994]
[1769884735778,3.96364568,2359.6,2356.3,3.95499994]
[1769884735978,3.96364568,2359.6,2356.5,3.95499994]
[1769884736576,3.822,2360.2,2356.5,3.95499994]
[1769884736577,7.78564568,2360.2,2356.5,3.95499994]
[1769884736782,7.79046143,2360.2,2356.5,3.95830692]
[1769884737077,3.96364568,2360.1,2356.7,3.95499994]
[1769884737278,0.00481575,2360.2,2357.0,2.70644517]
[1769884737482,0.00481575,2360.2,2357.1,3.95499994]
[1769884737683,3.96364568,2361.4,2358.5,3.95499994]
[1769884737986,3.96364568,2361.4,2358.4,2.70644517]
[1769884737987,3.96364568,2362.5,2359.2,3.95499994]
[1769884738387,3.96364568,2363.1,2359.2,3.95499994]
[1769884738684,3.96364568,2362.9,2359.4,3.95499994]
[1769884739078,0.00506765,2363.1,2359.6,3.95499994]
[1769884739284,0.00506765,2363.1,2359.9,3.95499994]
[1769884739687,0.00506765,2363.1,2360.6,3.95499994]
[1769884739884,3.96364568,2364.6,2361.3,3.95499994]
[1769884740089,3.96364568,2364.6,2361.4,3.95499994]
[1769884740288,3.96364568,2364.6,2362.0,3.95499994]
[1769884740485,3.96364568,2364.1,2362.0,3.95499994]
[1769884740680,3.96364568,2364.7,2362.1,3.95499994]
[1769884740879,3.96364568,2365.8,2362.3,3.95499994]
[1769884741081,3.96364568,2366.8,2363.0,3.95499994]
[1769884741282,3.96364568,2366.8,2363.7,3.95499994]
[1769884741483,3.96364568,2367.4,2364.4,3.95499994]
[1769884741679,3.96364568,2367.4,2363.4,0.21188]
[1769884741680,3.96364568,2368.0,2365.1,3.95499994]
[1769884741881,3.96364568,2369.4,2365.6,3.95499994]
[1769884742091,0.00333191,2368.0,2365.6,3.95499994]
[1769884742291,0.00333191,2368.0,2365.8,3.95499994]
[1769884742490,3.96364568,2369.4,2366.2,2.70644517]
[1769884742690,3.96364568,2370.9,2367.0,3.95499994]
[1769884742886,3.96364568,2370.6,2367.2,3.95499994]
[1769884743088,3.96364568,2370.2,2366.4,3.95499994]
[1769884743281,3.96364568,2369.8,2366.8,3.95499994]
[1769884743482,3.96364568,2369.8,2366.8,3.96026888]
[1769884743483,3.96364568,2369.6,2366.8,3.96026888]
[1769884743787,3.96364568,2369.2,2366.9,3.816]
[1769884743987,3.816,2369.7,2367.0,3.95499994]
[1769884743988,7.77964568,2369.7,2367.0,3.95499994]
[1769884744190,3.816,2369.7,2367.0,3.95499994]
[1769884744392,0.00405654,2369.8,2367.0,3.95499994]
[1769884744690,3.96364568,2368.8,2366.8,0.00526894]
[1769884745090,3.96364568,2369.7,2366.8,3.96026888]
[1769884745284,3.96364568,2369.7,2367.0,3.95499994]
[1769884745491,3.96364568,2368.8,2366.8,0.00526894]
[1769884745688,3.96364568,2367.7,2365.6,3.814]
[1769884745987,3.96364568,2367.3,2365.0,3.813]
[1769884746187,3.96364568,2367.3,2365.1,3.95499994]
[1769884746389,3.9674682,2367.3,2365.1,3.95499994]
[1769884746592,3.96364568,2366.1,2363.7,3.95499994]
[1769884746787,3.96364568,2365.8,2363.7,3.95838786]
[1769884747190,3.96364568,2365.8,2363.7,0.00338792]
[1769884747487,3.96364568,2365.8,2363.7,3.89717794]
[1769884747694,0.00382252,2365.7,2363.8,3.812]
[1769884747897,3.9674682,2365.8,2363.8,3.812]
[1769884748087,0.00543543,2366.1,2363.7,3.89717794]
[1769884748088,0.00382252,2364.7,2363.7,0.00338792]
[1769884748393,0.00543543,2366.1,2363.7,3.89717794]
[1769884748787,0.00543543,2366.1,2363.9,3.89379002]
[1769884748993,4.0549169,2367.4,2363.9,3.89379002]
[1769884749495,4.0549169,2367.4,2363.7,0.00338792]
[1769884749496,4.0549169,2365.8,2363.7,0.00338792]
[1769884749688,4.0549169,2365.8,2363.7,3.89717794]
[1769884749889,4.05883779,2365.8,2363.7,3.89717794]
[1769884750088,0.00392089,2365.8,2363.7,3.89717794]
[1769884750995,4.05883779,2365.8,2363.7,0.00338792]
[1769884751185,0.00392089,2365.8,2363.7,3.89717794]
[1769884751792,4.0549169,2368.2,2364.5,3.89379002]
[1769884752093,0.2112,2371.0,2365.9,3.89379002]
[1769884752094,4.0549169,2369.3,2365.9,3.89379002]
[1769884752295,4.0549169,2370.5,2366.4,3.89379002]
[1769884752484,4.2662069,2370.1,2366.6,3.89379002]
[1769884752685,4.0549169,2369.4,2366.6,3.89764902]
[1769884752886,0.21145,2368.3,2366.6,0.003859]
[1769884753090,4.0549169,2367.8,2365.2,7.70279002]
[1769884753292,4.0549169,2367.4,2365.2,3.809]
[1769884753490,4.0549169,2366.8,2364.6,3.89379002]
[1769884753694,0.21155,2367.2,2364.6,3.89379002]
[1769884753695,4.2664669,2367.2,2364.6,3.89379002]
[1769884753995,3.809,2367.9,2364.1,26.669]
[1769884753996,4.0549169,2366.4,2364.1,3.89379002]
[1769884754186,4.0549169,2366.4,2364.1,3.89889207]
[1769884754187,4.05815478,2366.4,2364.1,3.89889207]
[1769884754391,4.05873942,2366.3,2364.1,3.89889207]
[1769884754688,0.00323788,2366.4,2364.1,3.89889207]
[1769884754689,4.0549169,2366.2,2364.1,3.89889207]
[1769884754897,4.05873942,2365.3,2364.1,0.00510205]
[1769884755089,4.0549169,2365.9,2364.1,0.00510205]
[1769884755286,0.00382252,2365.7,2364.1,0.00510205]
[1769884755598,4.0549169,2364.6,2361.5,3.89379002]
[1769884755892,4.0549169,2363.3,2360.9,3.89379002]
[1769884756086,4.0549169,2363.0,2360.9,3.89379002]
[1769884756290,4.0549169,2362.5,2360.3,3.89379002]
[1769884756490,4.0549169,2362.5,2360.2,3.89379002]
[1769884756790,0.00379709,2362.5,2360.4,3.89379002]
[1769884757191,0.00382252,2362.4,2360.4,3.89379002]
[1769884757388,0.00382252,2362.2,2360.4,3.89379002]
[1769884757589,4.05871399,2362.5,2360.3,0.00471579]
[1769884757590,4.0549169,2361.8,2360.3,0.00471579]
[1769884757797,4.0549169,2361.5,2360.3,0.00471579]
[1769884757995,4.0549169,2362.1,2360.3,0.00471579]
[1769884758195,4.0549169,2361.4,2360.3,0.00471579]
[1769884758397,4.0549169,2361.4,2357.9,5.164]
[1769884758398,4.0549169,2360.7,2358.6,3.809]
[1769884758702,0.00382252,2359.9,2357.2,3.89379002]
[1769884758998,4.0549169,2360.5,2357.2,3.89379002]
[1769884759399,0.00364272,2360.5,2357.4,3.89379002]
[1769884759600,4.05855962,2360.5,2357.4,3.89379002]
[1769884760396,4.0549169,2360.3,2357.4,3.89379002]
[1769884760591,4.0549169,2359.4,2357.2,0.00428]
[1769884760795,0.00364272,2360.5,2357.2,0.00428]
[1769884760796,4.0549169,2360.0,2357.2,3.89807002]
[1769884761094,4.0549169,2359.7,2357.2,3.89807002]
[1769884761290,4.0549169,2359.0,2357.2,0.00428]
[1769884761490,0.21219,2360.0,2355.4,3.89379002]
[1769884761491,4.0549169,2358.3,2355.4,3.89379002]
[1769884761800,4.0549169,2358.1,2355.3,3.89379002]
[1769884762196,4.0549169,2358.8,2355.8,3.89379002]
[1769884762398,4.0549169,2360.1,2355.8,3.89379002]
[1769884762701,4.05837809,2360.1,2356.2,3.89379002]
[1769884762901,4.0549169,2359.9,2356.4,4.10630002]
[1769884763097,4.05837809,2360.1,2357.0,3.89379002]
[1769884763898,4.05837809,2360.1,2356.2,5.14]
[1769884763899,4.0549169,2358.6,2355.8,3.89785354]
[1769884764098,4.0549169,2357.9,2355.8,0.00406352]
[1769884764400,4.05911482,2357.9,2355.8,3.89785354]
[1769884764595,4.0549169,2357.8,2355.8,0.00406352]
[1769884764902,0.00419792,2357.9,2355.8,3.89785354]
[1769884765494,4.0549169,2360.0,2356.9,3.89379002]
[1769884765695,4.0549169,2360.0,2357.1,3.89379002]
[1769884766200,4.0549169,2360.2,2357.1,3.89379002]
[1769884766503,0.00477953,2360.2,2357.7,3.89379002]
[1769884766697,4.05969643,2360.2,2357.7,3.89753079]
[1769884766905,0.00477953,2360.2,2357.7,3.89753079]
[1769884767500,4.0549169,2362.5,2358.8,3.89379002]
[1769884767699,4.0549169,2362.5,2359.3,3.89379002]
[1769884767898,4.0549169,2362.5,2359.5,3.89379002]
[1769884768098,4.0549169,2362.5,2359.4,3.814]
[1769884768099,4.0549169,2361.2,2358.9,3.89379002]
[1769884768501,4.0549169,2361.1,2358.9,3.89826703]
[1769884768800,0.00382252,2360.4,2358.9,0.00447701]
[1769884769004,4.0549169,2360.6,2358.9,0.00447701]
[1769884769204,4.0549169,2360.4,2358.9,0.00447701]
[1769884769400,4.0549169,2358.9,2356.7,3.89379002]
[1769884769601,4.0549169,2358.9,2356.1,3.89379002]
[1769884769803,4.0549169,2358.7,2355.6,3.814]
[1769884770003,4.0549169,2357.9,2355.6,3.814]
[1769884770202,4.0549169,2357.9,2355.7,3.89379002]
[1769884770403,0.00404574,2357.9,2355.7,3.89885675]
[1769884770603,4.0549169,2357.8,2355.7,3.89885675]
[1769884770905,0.00404574,2357.9,2355.7,3.89885675]
[1769884771107,4.0549169,2359.1,2356.2,3.89379002]
[1769884771407,4.0549169,2358.9,2355.7,3.89885675]
[1769884771605,4.0549169,2358.1,2355.7,0.00506673]
[1769884771810,4.0549169,2357.9,2355.7,0.00506673]
[1769884772004,3.815,2358.3,2354.5,3.89379002]
[1769884772005,4.05873942,2356.5,2354.5,7.70879002]
[1769884772301,4.0549169,2356.1,2354.5,3.815]
[1769884772503,4.0549169,2356.1,2353.3,7.70879002]
[1769884772806,4.0549169,2356.9,2353.4,3.89379002]
[1769884773003,4.05938971,2356.9,2353.4,3.89820908]
[1769884773302,4.0549169,2356.5,2353.4,0.00441906]
[1769884773600,4.0549169,2354.7,2351.4,3.89379002]
[1769884774002,4.0549169,2354.7,2351.5,3.89379002]
[1769884774304,4.0549169,2355.3,2352.5,3.89379002]
[1769884774503,4.0549169,2355.3,2353.3,7.70938656]
[1769884774504,4.05806056,2355.3,2353.3,7.70938656]
[1769884774698,4.05806056,2355.3,2352.5,0.00471489]
[1769884774699,0.00314366,2355.3,2353.7,3.81559654]
[1769884774898,4.05806056,2355.3,2353.1,3.817]
[1769884775098,4.05806056,2355.3,2352.7,3.89379002]
[1769884775303,0.00314366,2355.3,2353.9,3.89379002]
[1769884775598,4.05806056,2355.3,2353.8,3.817]
[1769884775803,4.05806056,2355.3,2353.1,3.89379002]
[1769884776003,4.05806056,2355.3,2353.3,3.81559654]
[1769884776004,0.00314366,2355.3,2353.3,3.81559654]
[1769884776307,4.0549169,2357.4,2354.5,3.89379002]
[1769884776510,4.0549169,2357.4,2354.7,3.89379002]
[1769884776804,4.0549169,2357.4,2354.9,3.94890126]
[1769884777005,4.0549169,2357.4,2355.1,3.94890126]
[1769884777202,4.05986589,2357.4,2355.2,3.818]
[1769884777501,4.05986589,2357.4,2355.1,0.0049066]
[1769884777701,3.88437308,2357.2,2355.1,0.0049066]
[1769884778101,4.09682308,2357.2,2355.1,0.0049066]
[1769884778299,3.88437308,2356.6,2353.3,3.94890126]
[1769884778505,3.88437308,2356.4,2353.3,3.94890126]
[1769884778907,3.88437308,2356.2,2353.3,3.94890126]
[1769884779105,3.88437308,2356.2,2353.0,3.94890126]
[1769884779303,3.88437308,2356.2,2353.1,4.16171126]
[1769884779505,0.21248,2356.8,2353.0,0.00400864]
[1769884779506,3.88437308,2355.6,2353.0,0.00400864]
[1769884779711,3.88895058,2355.6,2353.0,0.00400864]
[1769884779908,3.88437308,2353.5,2349.5,0.21313]
[1769884780212,0.21264,2355.0,2348.3,12.51930128]
[1769884780213,3.88437308,2352.8,2348.4,3.94890126]
[1769884780405,3.88437308,2352.6,2348.7,3.94890126]
[1769884780609,3.88437308,2352.4,2348.7,3.94890126]
[1769884780809,3.88807627,2352.4,2348.7,3.95365219]
[1769884781107,3.88437308,2352.2,2349.1,3.94890126]
[1769884781301,3.88437308,2352.2,2349.4,3.94890126]
[1769884781503,2.08196069,2352.1,2350.1,3.94890126]
[1769884781703,3.88437308,2352.2,2350.1,3.94890126]
[1769884782014,3.74845601,2353.6,2351.1,3.95456584]
[1769884782309,3.74845601,2354.3,2351.1,3.95456584]
[1769884782610,3.74845601,2354.3,2351.8,3.95456584]
[1769884782809,3.74845601,2354.3,2351.1,3.95456584]
[1769884783014,3.75365737,2354.3,2351.1,3.95979738]
[1769884783208,3.75365737,2354.3,2352.4,3.81559654]
[1769884783209,0.00520136,2354.3,2352.4,3.81559654]
[1769884783510,0.00520136,2354.3,2353.0,3.81559654]
[1769884783811,0.00520136,2354.3,2353.0,0.00441641]
[1769884784007,0.00520136,2354.3,2353.1,3.81559654]
[1769884784311,0.00520136,2354.3,2353.0,0.00441641]
[1769884784714,3.75365737,2354.3,2353.0,0.00441641]
[1769884785010,3.75365737,2354.3,2353.1,3.81559654]
[1769884785307,3.75365737,2354.3,2353.0,3.82001295]
[1769884785513,3.75365737,2354.3,2353.0,0.00441641]
[1769884785710,3.74845601,2354.1,2350.8,3.95456584]
[1769884785910,3.74845601,2354.1,2351.0,3.95456584]
[1769884786106,3.96121601,2353.7,2350.4,3.95456584]
[1769884786310,3.74845601,2353.7,2350.6,3.95456584]
[1769884786506,3.74845601,2353.7,2350.7,3.95456584]
[1769884786707,0.2128,2353.3,2350.6,0.00385184]
[1769884786912,3.74845601,2353.2,2350.9,3.95456584]
[1769884787110,3.74845601,2353.2,2351.0,3.95456584]
[1769884787312,3.74845601,2353.2,2351.5,3.81559654]
[1769884787511,3.74845601,2353.2,2351.1,3.823]
[1769884787812,3.74845601,2353.2,2351.2,3.95456584]
[1769884788112,3.74845601,2353.2,2351.6,3.81559654]
[1769884788307,3.74845601,2354.0,2351.6,3.823]
[1769884788507,3.74845601,2354.0,2351.7,3.95456584]
[1769884788808,0.00520136,2354.3,2352.6,7.77016238]
[1769884789014,0.00520136,2354.3,2352.6,3.95901053]
[1769884789216,0.00520136,2354.3,2353.3,3.81559654]
[1769884789412,3.74845601,2354.9,2352.6,0.00444469]
[1769884789608,3.74845601,2354.5,2351.6,3.823]
[1769884789817,3.74845601,2353.7,2350.8,3.95456584]
[1769884790317,3.74845601,2353.4,2350.5,30.589]
[1769884790511,0.21283,2352.9,2350.2,3.95456584]
[1769884790716,3.74845601,2352.8,2350.2,3.95875713]
[1769884790907,4.23851081,2352.8,2351.0,3.95456584]
[1769884791210,0.00379978,2352.9,2351.3,3.95456584]
[1769884791616,3.75225579,2352.9,2351.5,3.81559654]
[1769884791817,0.00379978,2352.9,2351.5,3.81559654]
[1769884792012,3.74845601,2354.6,2352.5,7.77016238]
[1769884792216,0.21247,2356.9,2351.2,3.824]
[1769884792217,3.74845601,2355.2,2352.7,3.95456584]
[1769884792411,3.74845601,2355.2,2352.9,3.95456584]
[1769884793009,3.75241944,2355.2,2353.2,3.81559654]
[1769884793212,3.75241944,2355.2,2352.9,0.00434815]
[1769884793411,3.96109601,2355.0,2352.9,0.00434815]